[Event "57th Biel Festival ATO 2024"]
[Site "Biel"]
[Date "2024.07.24"]
[Round "8.5"]
[White "Noh, Jinwoo"]
[Black "Aegerter, Fabrice"]
[Result "1-0"]
[ECO "C28"]
[WhiteElo "1824"]
[BlackElo "1917"]
[Annotator "RC"]
[PlyCount "43"]
[EventDate "2024.07.03"]
[EventType "swiss"]
[EventCountry "SUI"]
[SourceTitle "playchess.com"]
[Source "ChessBase"]
[SourceQuality "1"]
[TimeControl "40/5400+30:1800+30"]

1. e4 {[%emt 0:00:08]} e5 {[%emt 0:00:06]} 2. Bc4 {[%emt 0:00:08]} Nf6 {[%emt 0:00:31]} 3. d3 {[%emt 0:00:28]} Nc6 {[%emt 0:02:45]} 4. Nc3 {[%emt 0:00:41]} Bb4 {[%emt 0:02:15]} 5. Nge2 {[%emt 0:08:34]} d5 {[%emt 0:10:46]} 6. exd5 {[%emt 0:00:47]} Nxd5 {[%emt 0:01:00]} 7. O-O {[%emt 0:00:18]} Be6 {[%emt 0:07:53]} 8. Bxd5 {[%emt 0:00:29]} Bxd5 {[%emt 0:00:47]} 9. f4 {[%emt 0:00:25]} Be6 {[%emt 0:08:15]} 10. f5 {[%emt 0:04:28]} Bd7 {[%emt 0:03:17]} 11. Ne4 {[%emt 0:03:11]} f6 {[%emt 0:03:57]} 12. a3 {[%emt 0:00:23]} Ba5 {[%emt 0:01:57]} 13. c4 {[%emt 0:00:21]} b5 {[%emt 0:15:27]} 14. b4 {[%emt 0:02:15]} Nxb4 {[%emt 0:12:16]} 15. axb4 {[%emt 0:00:42]} Bxb4 {[%emt 0:00:11]} 16. N2c3 {[%emt 0:03:24]} bxc4 {[%emt 0:01:32]} 17. dxc4 {[%emt 0:01:47]} O-O {[%emt 0:01:20]} 18. Nd5 {[%emt 0:01:09]} c5 {[%emt 0:02:36]} 19. Ra6 {[%emt 0:00:59]} Bc8 {[%emt 0:06:23]} 20. Rd6 {[%emt 0:00:07]} Qa5 {[%emt 0:00:27]} 21. Qh5 {[%emt 0:05:00]} Bb7 {[%emt 0:02:39]} 22. Nexf6+ {[%emt 0:00:56]} 1-0

[Event "57th Biel Festival ATO 2024"]
[Site "Biel"]
[Date "2024.07.24"]
[Round "8.6"]
[White "Yu, Tianxiang Carlos"]
[Black "Wiesmann, Dominique"]
[Result "0-1"]
[ECO "B01"]
[WhiteElo "1769"]
[BlackElo "1963"]
[Annotator "RC"]
[PlyCount "134"]
[EventDate "2024.07.03"]
[EventType "swiss"]
[EventCountry "SUI"]
[SourceTitle "playchess.com"]
[Source "ChessBase"]
[SourceQuality "1"]
[TimeControl "40/5400+30:1800+30"]

1. e4 {[%emt 0:00:30]} d5 {[%emt 0:00:06]} 2. exd5 {[%emt 0:00:06]} Qxd5 {[%emt 0:00:02]} 3. Nf3 {[%emt 0:00:10]} Bg4 {[%emt 0:00:01]} 4. Be2 {[%emt 0:00:08]} Nc6 {[%emt 0:00:56]} 5. h3 {[%emt 0:02:50]} Bxf3 {[%emt 0:00:35]} 6. Bxf3 {[%emt 0:00:59]} Qe6+ {[%emt 0:00:04]} 7. Qe2 {[%emt 0:09:20]} Qxe2+ {[%emt 0:03:14]} 8. Bxe2 {[%emt 0:01:56]} O-O-O {[%emt 0:00:37]} 9. O-O {[%emt 0:07:04]} e5 {[%emt 0:02:46]} 10. d3 {[%emt 0:03:17]} g6 {[%emt 0:06:11]} 11. c3 {[%emt 0:06:55]} Bh6 {[%emt 0:10:53]} 12. Nd2 {[%emt 0:04:33]} Nge7 {[%emt 0:04:51]} 13. Rd1 {[%emt 0:09:10]} Nd5 {[%emt 0:13:46]} 14. g3 {[%emt 0:09:01]} Rhe8 {[%emt 0:03:56]} 15. Nc4 {[%emt 0:06:46]} Bxc1 {[%emt 0:01:56]} 16. Raxc1 {[%emt 0:00:15]} f6 {[%emt 0:04:27]} 17. Bf3 {[%emt 0:02:05]} Re7 {[%emt 0:02:13]} 18. a4 {[%emt 0:03:20]} Red7 {[%emt 0:07:25]} 19. Rd2 {[%emt 0:08:03]} Kb8 {[%emt 0:04:24]} 20. Kf1 {[%emt 0:02:02]} Nb6 {[%emt 0:06:37]} 21. Nxb6 {[%emt 0:05:30]} axb6 {[%emt 0:01:03]} 22. Bxc6 {[%emt 0:07:11]} bxc6 {[%emt 0:00:05]} 23. Ke2 {[%emt 0:00:35]} c5 {[%emt 0:03:58]} 24. Ke3 {[%emt 0:02:10]} Kb7 {[%emt 0:04:12]} 25. b4 {[%emt 0:02:40]} cxb4 {[%emt 0:01:16]} 26. cxb4 {[%emt 0:00:01]} Ra8 {[%emt 0:10:32]} 27. Ra2 {[%emt 0:00:41]} Rd4 {[%emt 0:01:06]} 28. Rc4 {[%emt 0:01:14]} b5 {[%emt 0:03:57]} 29. Rxd4 {[%emt 0:00:17]} exd4+ {[%emt 0:00:08]} 30. Kxd4 {[%emt 0:00:02]} Rxa4 {[%emt 0:00:37]} 31. Rb2 {[%emt 0:00:21]} Kc6 {[%emt 0:01:22]} 32. Kc3 {[%emt 0:02:30]} Ra3+ {[%emt 0:00:52]} 33. Kd4 {[%emt 0:00:19]} Kd6 {[%emt 0:00:34]} 34. f4 {[%emt 0:02:49]} Ra4 {[%emt 0:00:40]} 35. Kc3 {[%emt 0:00:39]} Ra3+ {[%emt 0:00:21]} 36. Kd4 {[%emt 0:00:05]} c6 {[%emt 0:00:13]} 37. g4 {[%emt 0:00:39]} Ra1 {[%emt 0:00:34]} 38. f5 {[%emt 0:01:18]} gxf5 {[%emt 0:01:01]} 39. gxf5 {[%emt 0:00:28]} Rf1 {[%emt 0:00:39]} 40. Ke4 {[%emt 0:00:56]} Rh1 {[%emt 0:00:14]} 41. Rg2 {[%emt 0:03:20]} Rxh3 {[%emt 0:00:33]} 42. Rg8 {[%emt 0:00:16]} Rh4+ {[%emt 0:00:47]} 43. Ke3 {[%emt 0:00:15]} Ke5 {[%emt 0:02:47]} 44. Rc8 {[%emt 0:00:31]} Rxb4 {[%emt 0:01:17]} 45. Rxc6 {[%emt 0:00:02]} Kxf5 {[%emt 0:00:19]} 46. Rc7 {[%emt 0:01:29]} h5 {[%emt 0:00:54]} 47. Rh7 {[%emt 0:00:28]} Rh4 {[%emt 0:03:43]} 48. Rb7 {[%emt 0:00:30]} Rb4 {[%emt 0:03:35]} 49. Rh7 {[%emt 0:00:10]} Kg6 {[%emt 0:00:34]} 50. Rh8 {[%emt 0:00:15]} Rg4 {[%emt 0:00:58]} 51. d4 {[%emt 0:02:01]} h4 {[%emt 0:02:12]} 52. d5 {[%emt 0:01:48]} Kf7 {[%emt 0:03:44]} 53. Rh7+ {[%emt 0:00:13]} Ke8 {[%emt 0:00:46]} 54. Kd3 {[%emt 0:03:55]} b4 {[%emt 0:00:57]} 55. Ke3 {[%emt 0:01:57]} b3 {[%emt 0:01:03]} 56. Kd2 {[%emt 0:00:26]} Rc4 {[%emt 0:05:02]} 57. Rb7 {[%emt 0:01:19]} Rc2+ {[%emt 0:02:40]} 58. Kd3 {[%emt 0:03:17]} Rg2 {[%emt 0:00:54]} 59. Ke4 {[%emt 0:00:27]} b2 {[%emt 0:02:59]} 60. Kf5 {[%emt 0:00:21]} h3 {[%emt 0:02:26]} 61. Ke6 {[%emt 0:00:27]} Re2+ {[%emt 0:00:14]} 62. Kxf6 {[%emt 0:01:47]} h2 {[%emt 0:00:14]} 63. Rb8+ {[%emt 0:00:17]} Kd7 {[%emt 0:00:14]} 64. Rb7+ {[%emt 0:06:31]} Kd6 {[%emt 0:00:23]} 65. Rb6+ {[%emt 0:01:37]} Kxd5 {[%emt 0:00:14]} 66. Rb5+ {[%emt 0:05:43]} Kc4 {[%emt 0:00:29]} 67. Rh5 {[%emt 0:01:13]} b1=Q {[%emt 0:00:57]} 0-1

[Event "57th Biel Festival ATO 2024"]
[Site "Biel"]
[Date "2024.07.24"]
[Round "8.7"]
[White "Haas, Anthony"]
[Black "Oestmann, Lukas"]
[Result "0-1"]
[ECO "A62"]
[WhiteElo "1824"]
[BlackElo "1926"]
[Annotator "RC"]
[PlyCount "46"]
[EventDate "2024.07.03"]
[EventType "swiss"]
[EventCountry "SUI"]
[SourceTitle "playchess.com"]
[Source "ChessBase"]
[SourceQuality "1"]
[TimeControl "40/5400+30:1800+30"]

1. d4 {[%emt 0:00:09]} Nf6 {[%emt 0:00:21]} 2. c4 {[%emt 0:00:06]} c5 {[%emt 0:00:15]} 3. d5 {[%emt 0:00:07]} e6 {[%emt 0:00:03]} 4. g3 {[%emt 0:00:11]} exd5 {[%emt 0:00:04]} 5. cxd5 {[%emt 0:00:04]} d6 {[%emt 0:00:04]} 6. Bg2 {[%emt 0:00:03]} g6 {[%emt 0:00:02]} 7. Nc3 {[%emt 0:00:04]} Bg7 {[%emt 0:00:04]} 8. Nf3 {[%emt 0:00:04]} O-O {[%emt 0:00:05]} 9. O-O {[%emt 0:00:03]} Re8 {[%emt 0:00:03]} 10. Bf4 {[%emt 0:00:09]} Ne4 {[%emt 0:00:04]} 11. Nxe4 {[%emt 0:00:37]} Rxe4 {[%emt 0:00:05]} 12. Nd2 {[%emt 0:01:17]} Rb4 {[%emt 0:00:04]} 13. a3 {[%emt 0:00:57]} Rxf4 {[%emt 0:00:04]} 14. gxf4 {[%emt 0:00:09]} Bxb2 {[%emt 0:00:05]} 15. Ra2 {[%emt 0:00:27]} Bg7 {[%emt 0:00:26]} 16. e4 {[%emt 0:02:14]} Nd7 {[%emt 0:08:49]} 17. Nc4 {[%emt 0:04:25]} Nb6 {[%emt 0:01:04]} 18. Nxb6 {[%emt 0:11:28]} axb6 {[%emt 0:00:24]} 19. Qe2 {[%emt 0:04:38]} Qh4 {[%emt 0:13:57]} 20. Rb1 {[%emt 0:23:35]} Qxf4 {[%emt 0:16:58]} 21. Rxb6 {[%emt 0:03:50]} Be5 {[%emt 0:02:28]} 22. h3 {[%emt 0:02:32]} Bxh3 {[%emt 0:01:59]} 23. Bxh3 {[%emt 0:00:58]} Qh2+ {[%emt 0:00:09]} 0-1

[Event "57th Biel Festival ATO 2024"]
[Site "Biel"]
[Date "2024.07.24"]
[Round "8.9"]
[White "Szelag, Zuzanna"]
[Black "Pantillon, Patrick Andre"]
[Result "1-0"]
[ECO "B03"]
[WhiteElo "1897"]
[BlackElo "1782"]
[Annotator "NA RC"]
[PlyCount "95"]
[EventDate "2024.07.03"]
[EventType "swiss"]
[EventCountry "SUI"]
[SourceTitle "playchess.com"]
[Source "ChessBase"]
[SourceQuality "1"]
[TimeControl "40/5400+30:1800+30"]

1. e4 {[%emt 0:00:16]} Nf6 {[%emt 0:00:15]} 2. e5 {[%emt 0:00:05]} Nd5 {[%emt 0:01:24]} 3. c4 {[%emt 0:00:05]} Nb6 {[%emt 0:00:56]} 4. d4 {[%emt 0:00:04]} d6 {[%emt 0:00:49]} 5. exd6 {[%emt 0:00:05]} cxd6 {[%emt 0:00:53]} 6. Nc3 {[%emt 0:00:19]} Nc6 {[%emt 0:01:43]} 7. Be3 {[%emt 0:00:58]} g6 {[%emt 0:03:45]} 8. Rc1 {[%emt 0:02:02]} Bg7 {[%emt 0:00:24]} 9. b3 {[%emt 0:00:46]} Bf5 {[%emt 0:06:38]} 10. d5 {[%emt 0:09:27]} Ne5 {[%emt 0:03:08]} 11. Be2 {[%emt 0:00:50]} f6 {[%emt 0:08:40]} 12. f4 {[%emt 0:02:30]} Nf7 {[%emt 0:00:29]} 13. Nf3 {[%emt 0:00:59]} Bg4 {[%emt 0:01:58]} 14. Nd4 {[%emt 0:01:23]} Bd7 {[%emt 0:02:46]} 15. Bg4 {[%emt 0:23:15]} f5 {[%emt 0:01:23]} 16. Bf3 {[%emt 0:00:15]} a5 {[%emt 0:11:20]} 17. Ne6 {[%emt 0:04:42]} Bxe6 {[%emt 0:00:47]} 18. dxe6 {[%emt 0:00:03]} Nh6 {[%emt 0:06:44]} 19. Bxb7 {[%emt 0:00:24]} Rb8 {[%emt 0:07:50]} 20. Bc6+ {[%emt 0:00:33]} Kf8 {[%emt 0:00:15]} 21. Bd4 {[%emt 0:14:40]} Ng4 {[%emt 0:04:00]} 22. O-O {[%emt 0:03:00]} Nf6 {[%emt 0:01:09]} 23. Rf2 {[%emt 0:08:27]} Qc8 {[%emt 0:04:50]} 24. Bd5 {[%emt 0:01:22]} Nbxd5 {[%emt 0:01:03]} 25. cxd5 {[%emt 0:00:22]} Qb7 {[%emt 0:00:43]} 26. Rfc2 {[%emt 0:01:16]} h5 {[%emt 0:04:25]} 27. h3 {[%emt 0:05:15]} Ne8 {[%emt 0:01:07]} 28. Bxg7+ {[%emt 0:00:43]} Kxg7 {[%emt 0:00:28]} 29. Ne2 {[%emt 0:02:42]} Nf6 {[%emt 0:05:08]} 30. Rc7 {[%emt 0:08:26]} Qb6+ {[%emt 0:00:32]} 31. Kh1 {[%emt 0:01:57]} Rhe8 {[%emt 0:00:44]} 32. Nd4 {[%emt 0:01:27]} Ne4 {[%emt 0:01:54]} 33. Kh2 {[%emt 0:01:14]} Nc5 {[%emt 0:02:23]} 34. Rc6 {[%emt 0:00:54]} Qb7 {[%emt 0:00:56]} 35. Nf3 {[%emt 0:00:51]} Qb4 {[%emt 0:05:19]} 36. Rc4 {[%emt 0:01:05]} Qb7 {[%emt 0:03:55]} 37. Qd4+ {[%emt 0:01:21]} Kh6 {[%emt 0:01:07]} 38. Ng5 {[%emt 0:01:15]} Rbc8 {[%emt 0:04:47]} 39. Nf7+ {[%emt 0:01:29]} Kh7 {[%emt 0:00:18]} 40. Rxc8 {[%emt 0:00:59]} Rxc8 {[%emt 0:00:16]} 41. Rc3 {[%emt 0:10:31]} Ne4 {[%emt 0:03:47]} 42. Rc6 {[%emt 0:02:39]} Nf6 {[%emt 0:01:17]} 43. Rxc8 {[%emt 0:01:16]} Qxc8 {[%emt 0:00:22]} 44. Nxd6 {[%emt 0:00:28]} Qa8 {[%emt 0:01:56]} 45. Nc4 {[%emt 0:04:45]} Nxd5 {[%emt 0:00:50]} 46. Ne5 {[%emt 0:02:41]} Nf6 {[%emt 0:07:00]} 47. Nd7 {[%emt 0:03:21]} Qe4 {[%emt 0:02:39]} 48. Nxf6+ {[%emt 0:00:15]} 1-0

[Event "57th Biel Festival ATO 2024"]
[Site "Biel"]
[Date "2024.07.24"]
[Round "8.10"]
[White "Mohr, Jan"]
[Black "Schneuwly, Achim"]
[Result "0-1"]
[ECO "A43"]
[WhiteElo "1824"]
[BlackElo "1933"]
[Annotator "RC"]
[PlyCount "72"]
[EventDate "2024.07.03"]
[EventType "swiss"]
[EventCountry "SUI"]
[SourceTitle "playchess.com"]
[Source "ChessBase"]
[SourceQuality "1"]
[TimeControl "40/5400+30:1800+30"]

1. d4 {[%emt 0:00:09]} c5 {[%emt 0:00:04]} 2. d5 {[%emt 0:01:09]} e6 {[%emt 0:00:07]} 3. c4 {[%emt 0:00:29]} exd5 {[%emt 0:00:06]} 4. cxd5 {[%emt 0:00:13]} d6 {[%emt 0:00:07]} 5. Nc3 {[%emt 0:00:33]} Ne7 {[%emt 0:00:05]} 6. e4 {[%emt 0:01:14]} Ng6 {[%emt 0:00:07]} 7. h3 {[%emt 0:01:16]} Be7 {[%emt 0:00:13]} 8. Bb5+ {[%emt 0:02:26]} Bd7 {[%emt 0:00:15]} 9. Bxd7+ {[%emt 0:03:43]} Nxd7 {[%emt 0:00:10]} 10. Nf3 {[%emt 0:00:15]} O-O {[%emt 0:00:07]} 11. O-O {[%emt 0:00:05]} Bf6 {[%emt 0:02:40]} 12. Bd2 {[%emt 0:01:02]} Re8 {[%emt 0:00:38]} 13. Qc2 {[%emt 0:00:24]} a6 {[%emt 0:00:33]} 14. a4 {[%emt 0:00:19]} Rb8 {[%emt 0:01:56]} 15. a5 {[%emt 0:01:08]} b5 {[%emt 0:01:35]} 16. axb6 {[%emt 0:00:08]} Rxb6 {[%emt 0:03:22]} 17. Ra2 {[%emt 0:00:36]} Qb8 {[%emt 0:01:35]} 18. Rfa1 {[%emt 0:03:33]} Rb4 {[%emt 0:15:56]} 19. Re1 {[%emt 0:03:14]} Rb3 {[%emt 0:23:18]} 20. Rxa6 {[%emt 0:07:44]} Rxb2 {[%emt 0:00:54]} 21. Qd3 {[%emt 0:15:49]} Nde5 {[%emt 0:00:40]} 22. Nxe5 {[%emt 0:01:43]} Nxe5 {[%emt 0:02:29]} 23. Qe2 {[%emt 0:00:27]} c4 {[%emt 0:17:05]} 24. Rea1 {[%emt 0:04:31]} Nd3 {[%emt 0:03:49]} 25. Nd1 {[%emt 0:00:51]} Rc2 {[%emt 0:13:47]} 26. Ne3 {[%emt 0:05:14]} Bxa1 {[%emt 0:04:22]} 27. Nxc2 {[%emt 0:00:07]} Qb1+ {[%emt 0:00:04]} 28. Be1 {[%emt 0:01:59]} Bc3 {[%emt 0:00:47]} 29. Kf1 {[%emt 0:00:30]} f5 {[%emt 0:02:24]} 30. f3 {[%emt 0:02:44]} fxe4 {[%emt 0:01:08]} 31. Rxd6 {[%emt 0:01:10]} Nxe1 {[%emt 0:03:51]} 32. Nxe1 {[%emt 0:00:14]} Bxe1 {[%emt 0:00:07]} 33. Qxe1 {[%emt 0:00:30]} Qd3+ {[%emt 0:00:31]} 34. Qe2 {[%emt 0:00:31]} exf3 {[%emt 0:00:15]} 35. Qxd3 {[%emt 0:01:37]} fxg2+ {[%emt 0:00:04]} 36. Kxg2 {[%emt 0:00:22]} cxd3 {[%emt 0:00:05]} 0-1

[Event "57th Biel Festival ATO 2024"]
[Site "Biel"]
[Date "2024.07.24"]
[Round "8.11"]
[White "Kalbermatter, Philipp"]
[Black "Galopin, Clement"]
[Result "1-0"]
[ECO "C44"]
[WhiteElo "1912"]
[BlackElo "1816"]
[Annotator "RC"]
[PlyCount "79"]
[EventDate "2024.07.03"]
[EventType "swiss"]
[EventCountry "SUI"]
[SourceTitle "playchess.com"]
[Source "ChessBase"]
[SourceQuality "1"]
[TimeControl "40/5400+30:1800+30"]

1. e4 {[%emt 0:00:14]} e5 {[%emt 0:01:44]} 2. Nf3 {[%emt 0:00:39]} Nc6 {[%emt 0:00:05]} 3. c3 {[%emt 0:01:17]} Nf6 {[%emt 0:00:15]} 4. d4 {[%emt 0:00:33]} Nxe4 {[%emt 0:01:56]} 5. d5 {[%emt 0:00:51]} Ne7 {[%emt 0:00:07]} 6. Nxe5 {[%emt 0:00:53]} Ng6 {[%emt 0:00:06]} 7. Qe2 {[%emt 0:05:20]} Nxe5 {[%emt 0:02:00]} 8. Qxe4 {[%emt 0:00:18]} Qe7 {[%emt 0:00:22]} 9. f4 {[%emt 0:04:08]} Ng4 {[%emt 0:01:52]} 10. Qxe7+ {[%emt 0:06:55]} Bxe7 {[%emt 0:00:04]} 11. Be2 {[%emt 0:02:11]} d6 {[%emt 0:02:54]} 12. O-O {[%emt 0:01:22]} O-O {[%emt 0:03:52]} 13. Re1 {[%emt 0:02:24]} Re8 {[%emt 0:01:46]} 14. Bb5 {[%emt 0:03:04]} Bf5 {[%emt 0:05:37]} 15. Bxe8 {[%emt 0:00:56]} Rxe8 {[%emt 0:00:03]} 16. h3 {[%emt 0:03:01]} Nf6 {[%emt 0:00:01]} 17. g4 {[%emt 0:01:35]} Bd7 {[%emt 0:00:30]} 18. c4 {[%emt 0:01:34]} c6 {[%emt 0:01:45]} 19. Nc3 {[%emt 0:01:29]} Bd8 {[%emt 0:02:37]} 20. Rxe8+ {[%emt 0:00:45]} Nxe8 {[%emt 0:00:19]} 21. Be3 {[%emt 0:01:34]} a6 {[%emt 0:01:44]} 22. Re1 {[%emt 0:01:52]} Kf8 {[%emt 0:00:18]} 23. Kg2 {[%emt 0:02:02]} b5 {[%emt 0:00:14]} 24. cxb5 {[%emt 0:02:40]} axb5 {[%emt 0:00:11]} 25. Kg3 {[%emt 0:03:29]} b4 {[%emt 0:04:51]} 26. dxc6 {[%emt 0:04:36]} Bxc6 {[%emt 0:03:30]} 27. Nd1 {[%emt 0:00:37]} Ba5 {[%emt 0:02:43]} 28. b3 {[%emt 0:01:12]} Nf6 {[%emt 0:00:26]} 29. Nf2 {[%emt 0:00:43]} Nd5 {[%emt 0:02:16]} 30. Bd4 {[%emt 0:01:20]} Nc7 {[%emt 0:00:48]} 31. Ne4 {[%emt 0:08:43]} Nb5 {[%emt 0:00:43]} 32. Bb2 {[%emt 0:01:04]} d5 {[%emt 0:01:19]} 33. Rc1 {[%emt 0:02:13]} Bb7 {[%emt 0:05:57]} 34. Rc5 {[%emt 0:03:54]} Ba6 {[%emt 0:05:24]} 35. Nd6 {[%emt 0:04:41]} Nxd6 {[%emt 0:01:27]} 36. Rxa5 {[%emt 0:00:13]} Bb7 {[%emt 0:02:59]} 37. Bd4 {[%emt 0:01:21]} Ke7 {[%emt 0:01:47]} 38. Bc5 {[%emt 0:01:21]} Kd7 {[%emt 0:00:32]} 39. Bxd6 {[%emt 0:00:20]} Kxd6 {[%emt 0:00:10]} 40. Rb5 {[%emt 0:00:22]} 1-0

[Event "57th Biel Festival ATO 2024"]
[Site "Biel"]
[Date "2024.07.24"]
[Round "8.12"]
[White "Leuenberger, Urs"]
[Black "Schaer, Bryan"]
[Result "1/2-1/2"]
[ECO "D30"]
[WhiteElo "1903"]
[BlackElo "1803"]
[Annotator "ChessBase"]
[PlyCount "53"]
[EventDate "2024.07.03"]
[EventType "swiss"]
[EventCountry "SUI"]
[SourceTitle "playchess.com"]
[Source "ChessBase"]
[SourceQuality "1"]
[TimeControl "40/5400+30:1800+30"]

1. d4 {[%emt 0:02:01]} e6 {[%emt 0:12:34]} 2. c4 {[%emt 0:01:02]} d5 {[%emt 0:00:12]} 3. g3 {[%emt 0:00:28]} a6 {[%emt 0:04:36]} 4. b3 {[%emt 0:05:51]} Nf6 {[%emt 0:01:47]} 5. Bg2 {[%emt 0:00:17]} Bb4+ {[%emt 0:01:43]} 6. Bd2 {[%emt 0:00:37]} Be7 {[%emt 0:00:29]} 7. Nf3 {[%emt 0:01:48]} O-O {[%emt 0:02:03]} 8. O-O {[%emt 0:00:22]} Ne4 {[%emt 0:02:25]} 9. Nc3 {[%emt 0:01:40]} Nxd2 {[%emt 0:00:52]} 10. Qxd2 {[%emt 0:00:26]} dxc4 {[%emt 0:09:16]} 11. bxc4 {[%emt 0:01:29]} c5 {[%emt 0:02:26]} 12. d5 {[%emt 0:00:49]} Bf6 {[%emt 0:00:56]} 13. Rab1 {[%emt 0:02:43]} Bxc3 {[%emt 0:06:23]} 14. Qxc3 {[%emt 0:00:16]} exd5 {[%emt 0:00:02]} 15. cxd5 {[%emt 0:00:20]} Qxd5 {[%emt 0:00:39]} 16. Nh4 {[%emt 0:13:20]} Qxa2 {[%emt 0:02:55]} 17. Bxb7 {[%emt 0:02:02]} Bxb7 {[%emt 0:00:26]} 18. Rxb7 {[%emt 0:01:27]} Qd5 {[%emt 0:00:31]} 19. Rc7 {[%emt 0:05:49]} Nc6 {[%emt 0:01:18]} 20. Nf5 {[%emt 0:09:04]} Qxf5 {[%emt 0:00:25]} 21. Rxc6 {[%emt 0:00:11]} Rfc8 {[%emt 0:00:01]} 22. e4 {[%emt 0:04:44]} Qxe4 {[%emt 0:09:23]} 23. Rc7 {[%emt 0:01:32]} h6 {[%emt 0:08:54]} 24. Rc1 {[%emt 0:02:05]} Qb1 {[%emt 0:00:50]} 25. Kg2 {[%emt 0:00:07]} g6 {[%emt 0:02:36]} 26. h4 {[%emt 0:04:06]} h5 {[%emt 0:01:44]} 27. Kh2 {[%emt 0:01:13]} 1/2-1/2

[Event "57th Biel Festival ATO 2024"]
[Site "Biel"]
[Date "2024.07.24"]
[Round "8.13"]
[White "Papaux, Jeremie"]
[Black "Jordan, Theodor"]
[Result "1-0"]
[ECO "A06"]
[WhiteElo "1814"]
[BlackElo "1894"]
[Annotator "NA RC"]
[PlyCount "41"]
[EventDate "2024.07.03"]
[EventType "swiss"]
[EventCountry "SUI"]
[SourceTitle "playchess.com"]
[Source "ChessBase"]
[SourceQuality "1"]
[TimeControl "40/5400+30:1800+30"]

1. Nf3 {[%emt 0:00:04]} d5 {[%emt 0:00:13]} 2. e3 {[%emt 0:00:12]} c5 {[%emt 0:01:28]} 3. b3 {[%emt 0:01:11]} Nc6 {[%emt 0:00:21]} 4. Bb2 {[%emt 0:00:11]} Bf5 {[%emt 0:00:50]} 5. Bb5 {[%emt 0:02:12]} Nf6 {[%emt 0:00:43]} 6. O-O {[%emt 0:04:24]} Bg4 {[%emt 0:02:51]} 7. h3 {[%emt 0:03:11]} Bxf3 {[%emt 0:00:22]} 8. Qxf3 {[%emt 0:00:17]} a6 {[%emt 0:00:31]} 9. Bxc6+ {[%emt 0:00:51]} bxc6 {[%emt 0:00:01]} 10. d3 {[%emt 0:08:23]} Qc7 {[%emt 0:01:50]} 11. Nd2 {[%emt 0:03:18]} e5 {[%emt 0:02:32]} 12. e4 {[%emt 0:00:20]} Bd6 {[%emt 0:01:11]} 13. exd5 {[%emt 0:08:46]} cxd5 {[%emt 0:07:41]} 14. c4 {[%emt 0:00:08]} O-O {[%emt 0:00:31]} 15. cxd5 {[%emt 0:02:07]} Rad8 {[%emt 0:03:04]} 16. Nc4 {[%emt 0:03:04]} Rfe8 {[%emt 0:00:55]} 17. Rfe1 {[%emt 0:02:54]} Nd7 {[%emt 0:02:53]} 18. Bc3 {[%emt 0:02:17]} Qa7 {[%emt 0:03:04]} 19. Nxd6 {[%emt 0:03:58]} Rf8 {[%emt 0:00:03]} 20. Nf5 {[%emt 0:02:15]} f6 {[%emt 0:00:33]} 21. Ne7+ {[%emt 0:00:09]} 1-0

[Event "57th Biel Festival ATO 2024"]
[Site "Biel"]
[Date "2024.07.24"]
[Round "8.14"]
[White "Wenger, Arejou"]
[Black "Kim, Donghan"]
[Result "1/2-1/2"]
[ECO "B29"]
[WhiteElo "1875"]
[BlackElo "1746"]
[Annotator "NA"]
[PlyCount "86"]
[EventDate "2024.07.03"]
[EventType "swiss"]
[EventCountry "SUI"]
[SourceTitle "playchess.com"]
[Source "ChessBase"]
[SourceQuality "1"]
[TimeControl "40/5400+30:1800+30"]

1. e4 {[%emt 0:00:03]} c5 {[%emt 0:00:18]} 2. Nf3 {[%emt 0:00:09]} Nf6 {[%emt 0:00:16]} 3. e5 {[%emt 0:00:05]} Nd5 {[%emt 0:00:13]} 4. Nc3 {[%emt 0:00:06]} Nxc3 {[%emt 0:00:44]} 5. dxc3 {[%emt 0:00:05]} e6 {[%emt 0:01:00]} 6. Bf4 {[%emt 0:00:47]} Qc7 {[%emt 0:01:32]} 7. Qd2 {[%emt 0:02:07]} Nc6 {[%emt 0:01:11]} 8. O-O-O {[%emt 0:06:35]} b6 {[%emt 0:01:16]} 9. Bd3 {[%emt 0:03:12]} Bb7 {[%emt 0:00:52]} 10. Qe3 {[%emt 0:11:18]} h6 {[%emt 0:04:19]} 11. h4 {[%emt 0:03:49]} O-O-O {[%emt 0:01:22]} 12. Be4 {[%emt 0:08:03]} b5 {[%emt 0:13:24]} 13. Rd2 {[%emt 0:06:50]} Qb6 {[%emt 0:15:05]} 14. Rhd1 {[%emt 0:06:34]} Kc7 {[%emt 0:09:08]} 15. Bg3 {[%emt 0:08:24]} Be7 {[%emt 0:01:35]} 16. Ng1 {[%emt 0:04:19]} a5 {[%emt 0:03:31]} 17. f4 {[%emt 0:04:01]} g6 {[%emt 0:17:39]} 18. Bf2 {[%emt 0:04:28]} b4 {[%emt 0:05:33]} 19. Ne2 {[%emt 0:06:41]} h5 {[%emt 0:03:26]} 20. c4 {[%emt 0:02:36]} Ba6 {[%emt 0:02:19]} 21. b3 {[%emt 0:01:17]} Bb7 {[%emt 0:00:55]} 22. Rd3 {[%emt 0:01:04]} Qa7 {[%emt 0:01:10]} 23. Qd2 {[%emt 0:02:05]} Nb8 {[%emt 0:01:36]} 24. Bxb7 {[%emt 0:02:06]} Qxb7 {[%emt 0:01:13]} 25. Rg1 {[%emt 0:02:18]} Qc6 {[%emt 0:00:45]} 26. Qe3 {[%emt 0:02:42]} f5 {[%emt 0:01:07]} 27. Rgd1 {[%emt 0:03:00]} Na6 {[%emt 0:01:21]} 28. Ng1 {[%emt 0:01:13]} Rh7 {[%emt 0:00:54]} 29. Nf3 {[%emt 0:00:44]} Rg7 {[%emt 0:02:05]} 30. Qd2 {[%emt 0:01:59]} Bf8 {[%emt 0:02:19]} 31. Ng5 {[%emt 0:01:12]} Ra8 {[%emt 0:01:04]} 32. Be3 {[%emt 0:01:16]} Nb8 {[%emt 0:01:24]} 33. Bg1 {[%emt 0:02:02]} Ra7 {[%emt 0:01:12]} 34. Qf2 {[%emt 0:00:19]} Na6 {[%emt 0:01:56]} 35. R1d2 {[%emt 0:01:44]} Kc8 {[%emt 0:01:35]} 36. Qe1 {[%emt 0:00:44]} Rc7 {[%emt 0:01:02]} 37. Qd1 {[%emt 0:01:12]} Nb8 {[%emt 0:00:49]} 38. Bf2 {[%emt 0:01:19]} Be7 {[%emt 0:01:09]} 39. Qg1 {[%emt 0:00:52]} a4 {[%emt 0:00:46]} 40. Qd1 {[%emt 0:00:32]} Kb7 {[%emt 0:00:46]} 41. Qg1 {[%emt 0:07:56]} Kc8 {[%emt 0:02:29]} 42. Qd1 {[%emt 0:07:40]} Qa8 {[%emt 0:03:00]} 43. Qg1 {[%emt 0:02:07]} Qc6 {[%emt 0:05:03]} 1/2-1/2